bitfinex/quotes_BTCUSD_20230905
["timestamp","ask_amount","ask_price","bid_price","bid_amount"]
[1693913233866,0.94154406,25764.0,25763.0,1.562586]
[1693913234073,0.94940406,25764.0,25763.0,1.562586]
[1693913234496,0.95438406,25764.0,25763.0,1.562586]
[1693913234705,0.93350406,25764.0,25763.0,1.562586]
[1693913234908,0.94220406,25764.0,25763.0,1.562586]
[1693913235123,1.08188278,25764.0,25763.0,1.562586]
[1693913235323,1.08944278,25764.0,25763.0,1.562586]
[1693913235492,1.09454278,25764.0,25763.0,1.562586]
[1693913235691,1.08158278,25764.0,25763.0,1.562586]
[1693913235867,1.09028278,25764.0,25763.0,1.562586]
[1693913236086,1.09508278,25764.0,25763.0,1.562586]
[1693913236511,1.09382278,25764.0,25763.0,1.562586]
[1693913236712,1.09454278,25764.0,25763.0,1.562586]
[1693913236868,1.06802278,25764.0,25763.0,1.562586]
[1693913237068,1.08674278,25764.0,25763.0,1.562586]
[1693913237551,1.08782278,25764.0,25763.0,1.562586]
[1693913237863,1.06064278,25764.0,25763.0,1.562586]
[1693913238396,1.07234278,25764.0,25763.0,1.562586]
[1693913238621,1.05584278,25764.0,25763.0,1.562586]
[1693913238985,1.06802278,25764.0,25763.0,1.562586]
[1693913239316,1.07870278,25764.0,25763.0,1.562586]
[1693913239516,1.08818278,25764.0,25763.0,1.562586]
[1693913239721,1.06070278,25764.0,25763.0,1.562586]
[1693913240027,1.07264278,25764.0,25763.0,1.562586]
[1693913240255,1.08260278,25764.0,25763.0,1.562586]
[1693913240644,1.07864278,25764.0,25763.0,1.562586]
[1693913240846,1.08674278,25764.0,25763.0,1.562586]
[1693913241051,1.09424278,25764.0,25763.0,1.562586]
[1693913241453,1.09562278,25764.0,25763.0,1.562586]
[1693913241651,1.09688278,25764.0,25763.0,1.562586]
[1693913241860,1.08248278,25764.0,25763.0,1.562586]
[1693913242289,0.99746987,25764.0,25763.0,1.562586]
[1693913242521,1.00592987,25764.0,25763.0,1.562586]
[1693913242718,0.98102987,25764.0,25763.0,1.562586]
[1693913242940,0.99068987,25764.0,25763.0,1.562586]
[1693913243115,0.99968987,25764.0,25763.0,1.562586]
[1693913243531,0.98900987,25764.0,25763.0,1.562586]
[1693913243724,0.99482987,25764.0,25763.0,1.562586]
[1693913244287,1.00676987,25764.0,25763.0,1.562586]
[1693913244495,1.90742878,25764.0,25763.0,0.01]
[1693913244696,3.56272267,25764.0,25763.0,0.01]
[1693913244905,3.91228012,25764.0,25763.0,0.01]
[1693913245107,4.07228012,25764.0,25763.0,0.01]
[1693913245460,4.10932012,25764.0,25756.0,1.553017]
[1693913245601,0.48924527,25757.0,25756.0,1.51205151]
[1693913245800,0.64390338,25757.0,25756.0,1.51205151]
[1693913246005,0.48924527,25757.0,25756.0,1.51205151]
[1693913246566,0.74002325,25757.0,25756.0,1.51205151]
[1693913247167,0.80932325,25757.0,25756.0,1.51205151]
[1693913247367,0.74502325,25757.0,25756.0,1.51305151]
[1693913247749,0.74502325,25757.0,25756.0,1.55402]
[1693913247951,0.81906325,25757.0,25756.0,1.55402]
[1693913248157,0.82854325,25757.0,25756.0,1.55402]
[1693913248355,0.74802325,25757.0,25756.0,1.55402]
[1693913248738,0.83568325,25757.0,25756.0,1.55402]
[1693913249340,0.84054325,25757.0,25756.0,1.55402]
[1693913249541,0.74802325,25757.0,25756.0,1.55402]
[1693913249965,0.74802325,25757.0,25756.0,1.55401]
[1693913251043,0.83466325,25757.0,25756.0,1.55401]
[1693913251245,0.84420325,25757.0,25756.0,1.55401]
[1693913251461,0.74802325,25757.0,25756.0,1.55401]
[1693913251660,0.83052325,25757.0,25756.0,1.55401]
[1693913252074,0.83898325,25757.0,25756.0,1.55401]
[1693913252285,0.8014676,25757.0,25756.0,1.35984218]
[1693913252707,0.8861876,25757.0,25756.0,1.35984218]
[1693913253091,0.8929076,25757.0,25756.0,1.35984218]
[1693913253301,0.8014676,25757.0,25756.0,1.35984218]
[1693913253454,0.8014676,25757.0,25756.0,0.776505]
[1693913253673,0.8014676,25757.0,25756.0,1.55301]
[1693913254082,0.8896676,25757.0,25756.0,1.55301]
[1693913254333,0.9414676,25757.0,25756.0,1.55301]
[1693913254483,1.0312276,25757.0,25756.0,1.55301]
[1693913254688,1.0383676,25757.0,25756.0,1.55301]
[1693913254913,1.0384276,25757.0,25756.0,1.55301]
[1693913255122,1.0399876,25757.0,25756.0,1.55301]
[1693913255340,1.0386676,25757.0,25756.0,1.55301]
[1693913255542,1.0386676,25757.0,25756.0,0.776505]
[1693913255543,0.99258318,25757.0,25756.0,0.776505]
[1693913255753,0.79796962,25757.0,25754.0,0.776571]
[1693913255998,0.1026,25755.0,25754.0,0.776571]
[1693913256151,0.48924527,25755.0,25754.0,1.553142]
[1693913256378,0.56676527,25755.0,25754.0,1.553142]
[1693913256587,0.48924527,25755.0,25754.0,1.553142]
[1693913257201,0.72402256,25755.0,25754.0,1.553142]
[1693913257519,0.80004256,25755.0,25754.0,1.553142]
[1693913257909,0.72402256,25755.0,25754.0,1.568142]
[1693913258265,0.72402256,25755.0,25754.0,1.553142]
[1693913258466,0.72402256,25755.0,25754.0,1.566142]
[1693913258711,0.72602256,25755.0,25754.0,1.553142]
[1693913259114,0.73002256,25755.0,25754.0,1.554142]
[1693913259927,0.73002256,25755.0,25754.0,2.33072]
[1693913262694,0.79896256,25755.0,25754.0,2.33072]
[1693913262895,0.79788256,25755.0,25754.0,2.33072]
[1693913263091,0.73002256,25755.0,25754.0,2.33072]
[1693913263581,0.79986256,25755.0,25754.0,2.33072]
[1693913263781,0.79926256,25755.0,25754.0,2.33072]
[1693913263977,0.73002256,25755.0,25754.0,2.33072]
[1693913266272,0.73002256,25755.0,25754.0,2.33072]
[1693913266528,0.80340256,25755.0,25754.0,2.33072]
[1693913266730,0.80244256,25755.0,25754.0,2.33072]
[1693913266929,0.78081643,25755.0,25754.0,2.33072]
[1693913267770,0.85323643,25755.0,25754.0,2.33072]
[1693913267949,0.85479643,25755.0,25754.0,2.33072]
[1693913268126,0.78081643,25755.0,25754.0,2.33072]
[1693913269098,0.85521643,25755.0,25754.0,2.33072]
[1693913269436,0.85539643,25755.0,25754.0,2.33072]
[1693913269638,0.78081643,25755.0,25754.0,2.33072]
[1693913270263,0.85815643,25755.0,25754.0,2.33072]
[1693913270490,0.78081643,25755.0,25754.0,2.33072]
[1693913271037,2.33721478,25755.0,25754.0,0.001]
[1693913271257,2.60193646,25755.0,25754.0,0.001]
[1693913271464,2.73657646,25755.0,25754.0,0.001]
[1693913271671,2.73337646,25755.0,25754.0,0.001]
[1693913271872,1.80796846,25755.0,25754.0,0.001]
[1693913272004,1.81898846,25755.0,25754.0,0.001]
[1693913272211,1.83984846,25755.0,25754.0,0.003]
[1693913272416,1.82980846,25755.0,25754.0,0.002]
[1693913272677,1.85016846,25755.0,25754.0,0.004]
[1693913272886,1.85022846,25755.0,25754.0,0.004]
[1693913273096,1.85016846,25755.0,25754.0,0.004]
[1693913273296,1.74864882,25755.0,25754.0,0.004]
[1693913273494,1.74882882,25755.0,25754.0,0.004]
[1693913273698,1.74870882,25755.0,25754.0,0.004]
[1693913273908,1.72512882,25755.0,25754.0,0.004]
[1693913274114,1.73478882,25755.0,25754.0,0.004]
[1693913274473,1.74294882,25755.0,25754.0,0.004]
[1693913274669,1.74906882,25755.0,25754.0,0.004]
[1693913274872,1.72788882,25755.0,25754.0,0.004]
[1693913275071,1.74552882,25755.0,25754.0,0.004]
[1693913275507,0.96676082,25755.0,25754.0,0.004]
[1693913275671,0.95080082,25755.0,25754.0,0.004]
[1693913275858,0.95338082,25755.0,25754.0,0.004]
[1693913276057,0.95404082,25755.0,25754.0,0.004]
[1693913276513,0.95740082,25755.0,25754.0,0.004]
[1693913276708,0.95770082,25755.0,25754.0,0.004]
[1693913276885,0.95794082,25755.0,25754.0,0.004]
[1693913277100,0.95710082,25755.0,25754.0,0.004]
[1693913277470,0.95260082,25755.0,25754.0,0.004]
[1693913277725,0.95500082,25755.0,25754.0,0.004]
[1693913277932,0.95614082,25755.0,25754.0,0.004]
[1693913278535,0.95734082,25755.0,25754.0,0.004]
[1693913278734,0.94912082,25755.0,25754.0,0.004]
[1693913278958,0.95686082,25755.0,25754.0,0.004]
[1693913279404,0.96034082,25755.0,25754.0,0.004]
[1693913279608,0.96604082,25755.0,25754.0,0.004]
[1693913279810,0.96694082,25755.0,25754.0,0.004]
[1693913280017,0.96880082,25755.0,25754.0,0.004]
[1693913280423,0.96940082,25755.0,25754.0,0.004]
[1693913280598,0.96268082,25755.0,25754.0,0.004]
[1693913280795,0.96814082,25755.0,25754.0,0.004]
[1693913281002,0.97174082,25755.0,25754.0,0.004]
[1693913281326,0.97192082,25755.0,25754.0,0.004]
[1693913281496,0.97210082,25755.0,25754.0,0.004]
[1693913281695,0.97204082,25755.0,25754.0,0.004]
[1693913282071,0.70845914,25755.0,25754.0,0.004]
[1693913282256,1.48686714,25755.0,25754.0,0.004]
[1693913282717,1.63866714,25755.0,25754.0,0.004]
[1693913282915,1.6492872,25755.0,25754.0,0.004]
[1693913283308,1.6666272,25755.0,25754.0,0.004]
[1693913283609,1.6677072,25755.0,25754.0,0.004]
[1693913283816,1.6801272,25755.0,25754.0,0.004]
[1693913284026,1.6912272,25755.0,25754.0,0.004]
[1693913284253,1.7010672,25755.0,25754.0,0.004]
[1693913284408,1.8430272,25755.0,25754.0,0.004]
[1693913284611,1.7007672,25755.0,25754.0,0.004]
[1693913284806,1.8429072,25755.0,25754.0,0.004]
[1693913285323,1.8503472,25755.0,25754.0,0.004]
[1693913285520,1.7012472,25755.0,25754.0,0.004]
[1693913285670,1.8439872,25755.0,25754.0,0.004]
[1693913285875,1.8570672,25755.0,25754.0,0.004]
[1693913286079,1.8574272,25755.0,25754.0,0.004]
[1693913286278,1.8556272,25755.0,25754.0,0.004]
[1693913286479,1.8557472,25755.0,25754.0,0.004]
[1693913286665,1.8523872,25755.0,25754.0,0.004]
[1693913286864,2.23915247,25755.0,25754.0,0.004]
[1693913287272,1.6989072,25755.0,25754.0,0.004]
[1693913287513,1.6961472,25755.0,25754.0,0.004]
[1693913287826,1.7029872,25755.0,25754.0,0.004]
[1693913288246,1.8477072,25755.0,25754.0,0.004]
[1693913288547,1.6995672,25755.0,25754.0,0.004]
[1693913288698,1.79265583,25755.0,25754.0,0.004]
[1693913288908,1.93305583,25755.0,25754.0,0.004]
[1693913289240,1.00266783,25755.0,25754.0,0.004]
[1693913289388,0.98232783,25755.0,25754.0,0.004]
[1693913289610,0.99054783,25755.0,25754.0,0.004]
[1693913289808,0.99828783,25755.0,25754.0,0.004]
[1693913290239,1.00158783,25755.0,25754.0,0.004]
[1693913290453,1.00182783,25755.0,25754.0,0.004]
[1693913290681,0.97896783,25755.0,25754.0,0.004]
[1693913290988,0.99078783,25755.0,25754.0,0.004]
[1693913291177,1.00620783,25755.0,25754.0,0.004]
[1693913291421,1.00182783,25755.0,25754.0,0.004]
[1693913291635,1.00656783,25755.0,25754.0,0.004]
[1693913291855,1.00680783,25755.0,25754.0,0.004]
[1693913292143,1.00584783,25755.0,25754.0,0.004]
[1693913292364,0.98424783,25755.0,25754.0,0.004]
[1693913292567,0.97866783,25755.0,25754.0,0.004]
[1693913292773,0.98418783,25755.0,25754.0,0.004]
[1693913293009,0.98388783,25755.0,25754.0,0.004]
[1693913293177,0.98430783,25755.0,25754.0,0.004]
[1693913293391,0.96954783,25755.0,25754.0,0.780578]
[1693913293566,0.97086783,25755.0,25754.0,0.780578]
[1693913293953,0.97422783,25755.0,25754.0,0.780578]
[1693913294156,0.97236783,25755.0,25754.0,0.780578]
[1693913294418,0.88986783,25755.0,25754.0,0.780578]
[1693913294560,0.96174783,25755.0,25754.0,0.780578]
[1693913294926,0.96972783,25755.0,25754.0,0.780578]
[1693913295137,0.97326783,25755.0,25754.0,1.557156]
[1693913295334,0.96198783,25755.0,25754.0,1.557156]
[1693913295541,0.97008783,25755.0,25754.0,1.557156]
[1693913295741,0.97476783,25755.0,25754.0,1.557156]
[1693913295952,0.97476783,25755.0,25754.0,2.333734]
[1693913295953,0.56469914,25755.0,25754.0,2.333734]
[1693913296158,0.47943914,25755.0,25754.0,2.333734]
[1693913307655,0.47943914,25755.0,25754.0,2.36517953]
[1693913308553,0.09279387,25755.0,25754.0,2.36517953]
[1693913337316,0.09279387,25755.0,25754.0,2.36017953]
[1693913345310,0.09279387,25755.0,25754.0,2.76277953]
[1693913345649,0.042,25755.0,25754.0,2.76277953]
[1693913345924,0.042,25755.0,25754.0,2.66017953]
[1693913346113,0.04585631,25755.0,25754.0,2.66017953]
[1693913346445,0.008,25755.0,25754.0,2.66117953]
[1693913346643,0.003,25755.0,25754.0,2.66017953]
[1693913346864,0.14,25757.0,25754.0,2.66017953]
[1693913347126,0.008,25755.0,25754.0,2.66117953]
[1693913348246,0.005,25755.0,25754.0,2.66117953]
[1693913348651,0.14,25757.0,25754.0,2.66017953]
[1693913348826,0.14,25757.0,25755.0,0.3]
[1693913349033,0.145,25757.0,25756.0,3.106072]
[1693913349235,0.14,25757.0,25756.0,3.106072]
[1693913349447,0.143,25757.0,25756.0,3.106072]
[1693913349824,0.14,25757.0,25756.0,3.106072]
[1693913350024,0.162,25757.0,25756.0,3.108072]
[1693913350250,0.182,25757.0,25756.0,3.110072]
[1693913351103,0.182,25757.0,25756.0,3.565375]
[1693913357046,0.22787561,25757.0,25756.0,3.565375]
[1693913358757,0.182,25757.0,25756.0,3.565375]
[1693913359402,0.22787561,25757.0,25756.0,4.341893]
[1693913359819,0.182,25757.0,25756.0,4.341893]
[1693913360203,0.162,25757.0,25756.0,4.339893]
[1693913360412,0.143,25757.0,25756.0,4.337893]
[1693913360767,0.148,25757.0,25756.0,4.338893]
[1693913361813,0.145,25757.0,25756.0,4.338893]
[1693913362213,0.148,25757.0,25756.0,4.338893]
[1693913374650,0.145,25757.0,25756.0,4.338893]
[1693913375023,0.146,25757.0,25756.0,4.344893]
[1693913375223,0.141,25757.0,25756.0,4.343893]
[1693913375582,0.142,25757.0,25756.0,4.347893]
[1693913375808,0.14,25757.0,25756.0,4.337893]
[1693913376017,0.141,25757.0,25756.0,4.352893]
[1693913376262,0.1551,25761.0,25756.0,4.468493]
[1693913376510,0.06588,25762.0,25760.0,0.1026]
[1693913376643,0.27316295,25766.0,25761.0,2.731701]
[1693913376644,0.06948,25766.0,25761.0,2.731701]
[1693913376847,0.06948,25766.0,25762.0,0.1026]
[1693913377048,0.38664527,25765.0,25763.0,2.628903]
[1693913377322,0.38664527,25765.0,25763.0,4.181505]
[1693913377658,0.04710546,25764.0,25763.0,4.181505]
[1693913378919,0.05210546,25764.0,25763.0,4.181505]
[1693913379661,0.05910546,25764.0,25763.0,4.182505]
[1693913385639,0.1631,25767.0,25763.0,4.182505]
[1693913385854,0.04127514,25764.0,25763.0,4.182505]
[1693913386279,0.54974527,25767.0,25763.0,4.182505]
[1693913386529,0.54974527,25767.0,25763.0,4.181505]
[1693913386726,0.04127514,25764.0,25763.0,4.181505]
[1693913386931,0.55474527,25767.0,25763.0,4.181505]
[1693913387137,0.55874527,25767.0,25763.0,4.181505]
[1693913387345,0.04125585,25766.0,25763.0,4.181505]
[1693913387944,0.004,25764.0,25763.0,4.181505]
[1693913388397,0.005,25764.0,25763.0,4.181505]
[1693913388839,0.005,25764.0,25763.0,4.21203681]
[1693913389563,0.004,25766.0,25763.0,4.26970339]
[1693913389969,0.009,25766.0,25763.0,4.26970339]
[1693913390191,0.02325585,25765.0,25763.0,4.26970339]
[1693913390382,0.09303007,25770.0,25763.0,4.26970339]
[1693913390383,0.45988489,25772.0,25764.0,0.1026]
[1693913390635,0.56904527,25771.0,25766.0,4.657224]
[1693913390891,0.42427451,25771.0,25767.0,0.3]
[1693913391096,0.58277451,25771.0,25768.0,3.88075]
[1693913392267,0.58277451,25771.0,25768.0,3.88475]
[1693913392899,0.58277451,25771.0,25769.0,0.27158596]
[1693913393099,0.42427451,25771.0,25770.0,3.104384]
[1693913394133,0.42827451,25771.0,25770.0,3.104384]
[1693913394335,0.44227451,25771.0,25770.0,3.105384]
[1693913394542,0.43827451,25771.0,25770.0,3.105384]
[1693913394954,0.43827451,25771.0,25770.0,3.106384]
[1693913394955,0.45127451,25771.0,25770.0,3.106384]
[1693913402237,0.45127451,25771.0,25770.0,3.406384]
[1693913425238,0.45127451,25771.0,25770.0,3.406384]
[1693913430531,0.83505397,25771.0,25770.0,3.406384]
[1693913430732,0.83505397,25771.0,25770.0,2.330288]
[1693913430733,0.92808404,25771.0,25770.0,2.330288]
[1693913431979,0.83505397,25771.0,25770.0,2.330288]
[1693913432191,0.9281447,25771.0,25770.0,2.330288]
[1693913433864,1.0677808,25771.0,25770.0,2.330288]
[1693913434842,0.97469007,25771.0,25770.0,2.330288]
[1693913436155,1.16087154,25771.0,25770.0,2.330288]
[1693913436733,1.22849154,25771.0,25770.0,2.330288]
[1693913436937,1.24667154,25771.0,25770.0,2.330288]
[1693913437140,1.24595154,25771.0,25770.0,2.330288]
[1693913437341,1.24583154,25771.0,25770.0,2.330288]
[1693913437859,1.24379154,25771.0,25770.0,2.330288]
[1693913438227,1.23995154,25771.0,25770.0,2.3621108]
[1693913438342,1.24073154,25771.0,25770.0,2.3621108]
[1693913438742,1.24067154,25771.0,25770.0,2.3621108]
[1693913438937,1.23611154,25771.0,25770.0,2.3621108]
[1693913439149,1.24067154,25771.0,25770.0,2.3621108]
[1693913439367,1.24049154,25771.0,25770.0,2.3621108]
[1693913439576,1.24049154,25771.0,25770.0,2.330288]
[1693913439577,1.22705154,25771.0,25770.0,2.330288]
[1693913439775,1.16087154,25771.0,25770.0,2.330288]
[1693913439983,0.87969208,25771.0,25770.0,2.330288]
[1693913443494,1.16443334,25771.0,25770.0,2.330288]
[1693913443919,1.02479724,25771.0,25770.0,2.330288]
[1693913444519,1.16454585,25771.0,25770.0,2.330288]
[1693913444724,1.02479724,25771.0,25770.0,2.330288]
[1693913445703,1.09301724,25771.0,25770.0,2.330288]
[1693913445905,1.02479724,25771.0,25770.0,2.330288]
[1693913446533,1.09655724,25771.0,25770.0,2.330288]
[1693913446662,1.10387724,25771.0,25770.0,2.330288]
[1693913446883,1.02479724,25771.0,25770.0,2.330288]
[1693913447500,1.09613724,25771.0,25770.0,2.330288]
[1693913447810,1.12007724,25771.0,25770.0,2.330288]
[1693913448012,1.10219724,25771.0,25770.0,2.330288]
[1693913448217,1.10945724,25771.0,25770.0,2.330288]
[1693913448419,1.11467724,25771.0,25770.0,2.330288]
[1693913448623,1.12121724,25771.0,25770.0,2.330288]
[1693913448827,1.11725724,25771.0,25770.0,2.330288]
[1693913449037,1.12043724,25771.0,25770.0,2.330288]
[1693913449268,1.12169724,25771.0,25770.0,1.554192]
[1693913449693,1.11581724,25771.0,25770.0,1.554192]
[1693913449898,1.10867724,25771.0,25770.0,1.554192]
[1693913450107,1.11539724,25771.0,25770.0,1.554192]
[1693913450317,1.07153574,25771.0,25770.0,1.554192]
[1693913450520,1.07213574,25771.0,25770.0,1.554192]
[1693913450731,1.07177574,25771.0,25770.0,1.554192]
[1693913450932,1.07087574,25771.0,25770.0,1.554192]
[1693913451148,1.06949574,25771.0,25770.0,1.554192]
[1693913451444,1.06571574,25771.0,25770.0,1.554192]
[1693913451681,1.06703574,25771.0,25770.0,1.554192]
[1693913451885,1.06667574,25771.0,25770.0,1.554192]
[1693913452021,1.06649574,25771.0,25770.0,1.554192]
[1693913452429,1.06619574,25771.0,25770.0,1.554192]
[1693913452714,1.05383574,25771.0,25770.0,1.554192]
[1693913452878,1.05587574,25771.0,25770.0,1.554192]
[1693913453075,1.05875574,25771.0,25770.0,2.330288]
[1693913453279,1.05905574,25771.0,25770.0,2.330288]
[1693913453600,1.06091574,25771.0,25770.0,2.330288]
[1693913453800,1.06229574,25771.0,25770.0,2.330288]
[1693913453957,1.06067574,25771.0,25770.0,2.330288]
[1693913454171,1.06067574,25771.0,25770.0,1.554192]
[1693913454368,1.06127574,25771.0,25770.0,1.554192]
[1693913454607,1.05977574,25771.0,25770.0,1.554192]
[1693913454813,1.05395574,25771.0,25770.0,1.554192]
[1693913455407,1.05695574,25771.0,25770.0,1.554192]
[1693913455609,1.05983574,25771.0,25770.0,1.554192]
[1693913455779,0.97835574,25771.0,25770.0,1.554192]
[1693913456185,1.04393574,25771.0,25770.0,1.554192]
[1693913456390,1.05455574,25771.0,25770.0,1.554192]
[1693913456642,0.97835574,25771.0,25770.0,1.554192]
[1693913457187,1.05113574,25771.0,25770.0,1.554192]
[1693913457398,0.97835574,25771.0,25770.0,1.554192]
[1693913458100,1.04765574,25771.0,25770.0,1.554192]
[1693913458320,1.04891574,25771.0,25770.0,1.554192]
[1693913458523,0.97835574,25771.0,25770.0,1.554192]
[1693913459342,1.05065574,25771.0,25770.0,1.554192]
[1693913459543,1.05701574,25771.0,25770.0,1.554192]
[1693913459747,0.97835574,25771.0,25770.0,1.554192]
[1693913461386,1.04963574,25771.0,25770.0,1.554192]
[1693913461583,0.97835574,25771.0,25770.0,1.554192]
[1693913462208,0.69361448,25771.0,25770.0,2.330288]
[1693913465707,0.78677819,25771.0,25770.0,2.330288]
[1693913466526,0.69361448,25771.0,25770.0,2.330288]
[1693913469403,0.93327662,25771.0,25770.0,2.330288]
[1693913471558,0.93328996,25771.0,25770.0,2.330288]
[1693913475160,1.00414996,25771.0,25770.0,2.330288]
[1693913475373,0.69362782,25771.0,25770.0,1.554192]
[1693913475585,1.22435148,25771.0,25770.0,0.778096]
[1693913476005,1.23341148,25771.0,25770.0,0.778096]
[1693913476207,1.23809148,25771.0,25770.0,0.778096]
[1693913476418,1.20353148,25771.0,25770.0,0.778096]
[1693913476592,1.07487817,25771.0,25770.0,0.778096]
[1693913476793,1.27507549,25771.0,25770.0,0.778096]
[1693913477013,1.28473549,25771.0,25770.0,0.778096]
[1693913477230,1.18777549,25771.0,25770.0,0.778096]
[1693913477432,1.25323549,25771.0,25770.0,0.778096]
[1693913477798,1.26325549,25771.0,25770.0,0.778096]
[1693913478001,1.28065549,25771.0,25770.0,0.778096]
[1693913478176,1.26715549,25771.0,25770.0,0.778096]
[1693913478371,1.27471549,25771.0,25770.0,0.778096]
[1693913478571,1.28263549,25771.0,25770.0,0.778096]
[1693913478797,1.29109549,25771.0,25770.0,0.778096]
[1693913479119,1.29115549,25771.0,25770.0,0.778096]
[1693913479430,1.29247549,25771.0,25770.0,0.002]
[1693913479636,1.29247549,25771.0,25770.0,0.778096]
[1693913479844,1.28839549,25771.0,25770.0,0.778096]
[1693913480038,1.28821549,25771.0,25770.0,0.778096]
[1693913480215,1.28797549,25771.0,25770.0,0.778096]
[1693913480418,1.28779549,25771.0,25770.0,0.778096]
[1693913480644,1.28875549,25771.0,25770.0,0.778096]
[1693913480824,1.28857549,25771.0,25770.0,0.778096]
[1693913481025,1.29043549,25771.0,25770.0,0.778096]
[1693913481229,1.28995549,25771.0,25770.0,0.778096]
[1693913481531,1.29247549,25771.0,25770.0,0.778096]
[1693913481684,1.29229549,25771.0,25770.0,0.002]
[1693913481910,1.29265549,25771.0,25770.0,0.002]
[1693913482115,1.29229549,25771.0,25770.0,0.002]
[1693913482318,1.29103549,25771.0,25770.0,0.002]
[1693913482538,1.29097549,25771.0,25770.0,0.002]
[1693913482745,1.29067549,25771.0,25770.0,0.002]
[1693913482938,1.27975549,25771.0,25770.0,0.002]
[1693913483196,1.28743549,25771.0,25770.0,0.002]
[1693913483379,1.29019549,25771.0,25770.0,0.002]
[1693913483580,1.29697549,25771.0,25770.0,0.002]
[1693913483801,1.30549549,25771.0,25770.0,0.002]
[1693913483927,1.30015549,25771.0,25770.0,0.002]
[1693913484130,1.53667768,25771.0,25770.0,0.002]
[1693913484331,2.06441777,25771.0,25770.0,0.002]
[1693913484754,2.30683275,25771.0,25770.0,0.002]
[1693913485110,2.30305275,25771.0,25770.0,0.002]
[1693913485314,2.30293275,25771.0,25770.0,0.002]
[1693913485626,2.30779275,25771.0,25770.0,0.002]
[1693913485831,2.30581275,25771.0,25770.0,0.002]
[1693913486071,2.30143275,25771.0,25770.0,0.002]
[1693913486249,2.30167275,25771.0,25770.0,0.002]
[1693913486653,2.30029275,25771.0,25770.0,0.002]
[1693913486860,2.30011275,25771.0,25770.0,0.002]
[1693913487063,2.45370275,25771.0,25770.0,0.002]
[1693913487270,2.46378275,25771.0,25770.0,0.002]
[1693913487537,2.47164275,25771.0,25770.0,0.002]
[1693913487724,2.27779275,25771.0,25770.0,0.002]
[1693913487871,2.27773275,25771.0,25770.0,0.002]
[1693913488081,2.28721275,25771.0,25770.0,0.002]
[1693913488485,2.29315275,25771.0,25770.0,0.002]
[1693913488688,2.29783275,25771.0,25770.0,0.002]
[1693913488865,2.27467275,25771.0,25770.0,0.002]
[1693913489067,2.28319275,25771.0,25770.0,0.002]
[1693913489592,2.29117275,25771.0,25770.0,0.002]
[1693913489801,2.29405275,25771.0,25770.0,0.002]
[1693913489951,2.26699275,25771.0,25770.0,0.002]
[1693913490158,2.04099056,25771.0,25770.0,0.002]
[1693913490581,2.04741056,25771.0,25770.0,0.002]
[1693913490823,2.05851056,25771.0,25770.0,0.002]
[1693913491006,2.03721056,25771.0,25770.0,0.002]
[1693913491210,2.04609056,25771.0,25770.0,0.002]
[1693913491418,2.05467056,25771.0,25770.0,0.002]
[1693913491744,2.05935056,25771.0,25770.0,0.002]
[1693913491957,2.02719056,25771.0,25770.0,0.002]
[1693913492131,2.04063056,25771.0,25770.0,0.002]
[1693913492478,2.05041056,25771.0,25770.0,0.002]
[1693913492613,2.05833056,25771.0,25770.0,0.002]
[1693913492813,1.26864456,25771.0,25770.0,0.002]
[1693913493015,1.27590456,25771.0,25770.0,0.002]
[1693913493220,1.28334456,25771.0,25770.0,0.002]
[1693913493567,1.28688456,25771.0,25770.0,0.002]
[1693913493704,1.26504456,25771.0,25770.0,0.002]
[1693913493907,1.27398456,25771.0,25770.0,0.002]
[1693913494208,1.28322456,25771.0,25770.0,0.002]
[1693913494411,1.28676456,25771.0,25770.0,0.002]
[1693913494611,1.28784456,25771.0,25770.0,0.002]
[1693913494834,1.52238675,25771.0,25770.0,0.002]
[1693913495039,1.52040675,25771.0,25770.0,0.002]
[1693913495283,1.51950675,25771.0,25770.0,0.002]
[1693913495489,1.52046675,25771.0,25770.0,0.002]
[1693913495688,1.52969675,25771.0,25770.0,0.002]
[1693913495891,1.52879675,25771.0,25770.0,0.002]
[1693913496042,1.53239675,25771.0,25770.0,0.002]
[1693913496493,1.53347675,25771.0,25770.0,0.002]
[1693913496663,1.53449675,25771.0,25770.0,0.002]
[1693913496885,1.29520177,25771.0,25770.0,0.002]
[1693913497126,3.62783977,25771.0,25770.0,0.002]
[1693913497330,3.8658851,25771.0,25770.0,0.002]
[1693913497534,3.9281651,25771.0,25770.0,0.002]
[1693913497727,3.9440851,25771.0,25770.0,0.002]
[1693913497881,3.9576451,25771.0,25770.0,0.002]
[1693913498087,3.9576451,25771.0,25770.0,0.001]
[1693913498088,4.22147173,25771.0,25770.0,0.001]
[1693913498354,4.22947173,25771.0,25770.0,0.002]
[1693913498654,3.9270051,25771.0,25770.0,0.001]
[1693913498853,3.9376851,25771.0,25770.0,0.001]
[1693913498997,3.9604851,25771.0,25770.0,0.003]
[1693913499196,4.1111851,25771.0,25770.0,0.002]
[1693913499476,4.1399851,25771.0,25770.0,0.004]
[1693913499724,4.1161051,25771.0,25770.0,0.004]
[1693913499949,4.1169451,25771.0,25770.0,0.004]
[1693913500278,4.1147851,25771.0,25770.0,0.004]
[1693913500479,4.1120251,25771.0,25770.0,0.004]
[1693913500681,4.1119051,25771.0,25770.0,0.004]
[1693913500881,4.1122651,25771.0,25770.0,0.004]
[1693913501292,4.1126251,25771.0,25770.0,0.004]
[1693913501487,4.1248651,25771.0,25770.0,0.004]
[1693913501685,4.0967851,25771.0,25770.0,0.004]
[1693913501896,4.1170651,25771.0,25770.0,0.004]
[1693913502095,4.1253451,25771.0,25770.0,0.004]
[1693913502290,4.1294251,25771.0,25770.0,0.004]
[1693913502497,4.1087851,25771.0,25770.0,0.004]
[1693913502701,4.1179051,25771.0,25770.0,0.004]
[1693913503092,4.1558251,25771.0,25770.0,0.004]
[1693913503372,4.1719051,25771.0,25770.0,0.004]
[1693913503616,4.1205451,25771.0,25770.0,0.004]